bitfinex/quotes_ETHUSD_20250725
["timestamp","ask_amount","ask_price","bid_price","bid_amount"]
[1753426261898,3.67316436,3643.3,3643.2,0.1376]
[1753426262105,4.11959237,3643.3,3643.2,0.1376]
[1753426262460,4.11959237,3643.3,3643.1,0.04]
[1753426262461,2.7448397,3643.2,3643.1,0.04]
[1753426262690,3.6732397,3643.2,3643.1,0.04]
[1753426262892,4.52155548,3643.2,3643.1,0.04]
[1753426263094,5.07155548,3643.2,3643.1,0.04]
[1753426263417,5.48355692,3643.2,3643.1,0.04]
[1753426264297,5.45604114,3643.2,3643.1,0.04]
[1753426266306,8.45604114,3643.2,3643.1,0.04]
[1753426269202,8.45604114,3643.2,3642.3,0.1386]
[1753426269203,0.55,3642.9,3642.3,0.1386]
[1753426269398,0.55,3642.7,3642.3,0.1386]
[1753426269619,1.4784,3642.7,3642.3,0.1386]
[1753426270005,3.74232183,3642.7,3642.3,0.1386]
[1753426270199,0.76,3643.1,3642.5,0.2294]
[1753426270402,4.318,3643.0,3642.6,1.20705155]
[1753426270606,3.67351592,3642.9,3642.3,0.001]
[1753426270800,0.76,3643.1,3642.8,0.2294]
[1753426271000,0.76,3643.1,3643.0,0.1376]
[1753426272238,0.76,3643.1,3642.5,0.2294]
[1753426272239,3.50491504,3643.1,3642.5,0.2294]
[1753426272531,4.318,3643.0,3642.4,2.74542629]
[1753426272742,4.318,3643.0,3642.7,0.1376]
[1753426272918,7.06303928,3643.0,3642.7,0.1376]
[1753426273095,7.51013928,3643.0,3642.7,0.1376]
[1753426273291,0.9284,3642.9,3642.7,0.1376]
[1753426273486,3.6734834,3642.9,3642.7,0.1376]
[1753426274034,7.11284256,3642.4,3642.3,0.001]
[1753426274193,11.42984256,3642.4,3642.3,0.001]
[1753426274533,12.49584256,3642.4,3642.3,0.001]
[1753426274895,5.4334,3642.4,3642.3,0.001]
[1753426275122,3.6876,3642.4,3642.3,0.001]
[1753426275333,3.55,3642.4,3642.3,0.001]
[1753426275529,0.55,3642.4,3642.3,0.001]
[1753426275840,4.867,3642.4,3642.3,0.001]
[1753426276607,4.317,3642.6,3642.3,0.001]
[1753426276804,4.317,3642.6,3642.3,0.1386]
[1753426277040,4.317,3642.6,3642.5,0.1376]
[1753426277729,2.74508256,3642.9,3642.5,0.1376]
[1753426277894,4.317,3642.8,3642.5,0.1376]
[1753426278095,2.74529182,3642.6,3642.3,0.001]
[1753426278296,4.12074256,3642.4,3642.3,0.001]
[1753426278496,11.43774256,3642.4,3642.3,0.001]
[1753426278978,12.36634256,3642.4,3642.3,0.001]
[1753426279604,12.36534256,3642.4,3642.3,0.001]
[1753426282645,8.04934256,3642.4,3642.3,0.001]
[1753426282949,12.36534256,3642.4,3642.3,0.001]
[1753426283840,14.36790881,3642.4,3642.3,0.001]
[1753426285557,7.04859332,3642.2,3642.1,0.04]
[1753426285730,11.36359332,3642.2,3642.1,0.04]
[1753426285909,7.0486687,3642.1,3642.0,1e-08]
[1753426286107,7.9772687,3642.1,3642.0,1e-08]
[1753426286326,9.97752667,3642.1,3642.0,1e-08]
[1753426286650,9.97752667,3642.1,3641.6,0.001]
[1753426286651,7.04897028,3641.7,3641.6,1e-08]
[1753426286804,11.36397028,3641.7,3641.6,1e-08]
[1753426287144,14.41487118,3641.7,3641.6,1e-08]
[1753426287325,14.41487118,3641.7,3641.1,0.041]
[1753426287326,3.29619651,3641.4,3641.1,0.041]
[1753426287503,11.36789651,3641.4,3641.3,1e-08]
[1753426287708,9.85432219,3641.4,3641.3,1e-08]
[1753426288108,14.16932219,3641.4,3641.3,1e-08]
[1753426290913,9.85432219,3641.4,3641.3,1e-08]
[1753426291129,14.16932219,3641.4,3641.3,1e-08]
[1753426291822,14.17032219,3641.4,3641.3,1e-08]
[1753426292642,14.17032219,3641.4,3640.8,0.001]
[1753426292643,7.10979821,3641.0,3640.8,0.001]
[1753426292844,11.42479821,3641.0,3640.8,0.001]
[1753426293048,11.56239821,3641.0,3640.8,0.001]
[1753426293248,12.49099821,3641.0,3640.8,0.001]
[1753426293410,14.25661711,3641.0,3640.8,0.001]
[1753426294219,14.25661711,3641.0,3640.4,0.001]
[1753426294220,3.29672453,3640.7,3640.6,1e-08]
[1753426294442,11.54414031,3640.7,3640.6,1e-08]
[1753426294745,13.69200308,3640.7,3640.6,1e-08]
[1753426294927,14.16600308,3640.7,3640.6,1e-08]
[1753426295311,3.2971018,3640.2,3639.6,0.001]
[1753426295507,11.40691758,3640.2,3639.6,0.001]
[1753426295715,7.06377918,3639.7,3639.6,0.001]
[1753426295912,6.29747918,3639.7,3639.6,0.001]
[1753426296346,7.315,3639.7,3639.6,0.436]
[1753426296508,10.06247918,3639.7,3639.6,0.436]
[1753426296918,4.315,3639.7,3639.6,0.436]
[1753426297118,4.315,3639.7,3639.6,0.9125]
[1753426297425,4.315,3639.7,3639.6,0.001]
[1753426297620,4.315,3639.7,3639.6,0.9125]
[1753426298254,0.13842814,3640.2,3639.6,3.89043282]
[1753426298453,4.316,3640.1,3639.7,0.9115]
[1753426298624,4.316,3640.0,3639.8,0.435]
[1753426298824,7.06325274,3640.0,3639.9,0.9115]
[1753426299059,7.06325274,3640.0,3639.6,0.59762632]
[1753426299060,4.316,3640.0,3639.6,0.2314]
[1753426299432,3.29732981,3639.9,3639.6,0.2314]
[1753426299762,0.55,3640.1,3639.7,0.9115]
[1753426299914,0.55,3640.1,3639.6,0.2314]
[1753426299915,4.315,3640.0,3639.8,0.435]
[1753426300111,4.315,3639.9,3639.6,0.2314]
[1753426300311,3.0,3640.4,3639.6,0.2314]
[1753426300560,2.74741549,3639.8,3639.6,0.2314]
[1753426300731,3.50151578,3640.4,3639.6,0.2314]
[1753426300732,7.06247918,3639.7,3639.6,0.2314]
[1753426300928,7.06247918,3639.7,3639.6,0.001]
[1753426301263,7.61247918,3639.7,3639.6,0.001]
[1753426302015,4.865,3639.7,3639.6,0.001]
[1753426302217,4.865,3639.7,3639.6,0.436]
[1753426302432,7.61247918,3639.7,3639.6,0.436]
[1753426302859,7.61247918,3639.7,3639.6,0.001]
[1753426303232,3.29747918,3639.7,3639.6,0.001]
[1753426303422,4.865,3639.7,3639.6,0.001]
[1753426303622,4.865,3639.7,3639.6,0.436]
[1753426303823,7.61247918,3639.7,3639.6,0.001]
[1753426304372,4.315,3639.7,3639.6,0.9125]
[1753426304658,4.315,3639.7,3639.6,1.53215988]
[1753426304868,4.315,3639.7,3639.6,1.1429]
[1753426305016,4.315,3639.7,3639.6,3.89045467]
[1753426305217,4.315,3639.7,3639.6,1.1429]
[1753426305450,4.315,3639.7,3639.6,4.02805467]
[1753426305668,4.315,3639.7,3639.6,4.70582185]
[1753426306063,4.315,3639.7,3639.6,1.95826718]
[1753426306268,4.315,3639.7,3639.6,1.2805]
[1753426308604,4.315,3639.7,3639.6,4.02805467]
[1753426308777,0.55,3640.2,3639.6,1.2805]
[1753426309121,4.41818825,3640.5,3640.0,0.2304]
[1753426309324,4.314,3640.4,3640.1,3.79557016]
[1753426309618,4.314,3640.4,3640.2,0.9108]
[1753426309801,4.314,3640.4,3640.3,0.1376]
[1753426310224,1.67131262,3640.5,3640.4,2.74695088]
[1753426310377,1.67131262,3640.5,3640.4,3.88815088]
[1753426311320,1.67131262,3640.5,3640.4,1.1412]
[1753426312031,1.67131262,3640.5,3640.4,3.88815088]
[1753426312227,1.67131262,3640.5,3640.4,0.2304]
[1753426312395,1.67131262,3640.5,3640.4,0.6874]
[1753426312594,1.67131262,3640.5,3640.4,4.29073375]
[1753426313916,1.67131262,3640.5,3640.4,11.63120325]
[1753426314223,4.313,3641.5,3641.1,2.97681358]
[1753426314584,4.313,3641.5,3641.4,0.1376]
[1753426315395,0.55,3641.8,3641.4,0.1376]
[1753426315683,0.55,3641.8,3641.4,0.5946]
[1753426315684,4.313,3641.7,3641.4,0.5946]
[1753426316419,4.312,3641.6,3641.4,0.1376]
[1753426317046,2.74619651,3641.4,3640.8,0.2304]
[1753426317204,2.278,3641.5,3641.1,0.1376]
[1753426317534,0.55,3641.3,3641.0,0.1376]
[1753426317737,4.312,3641.2,3641.0,0.1376]
[1753426318121,4.312,3641.2,3640.5,0.2304]
[1753426318122,0.9296,3641.1,3640.5,0.2304]
[1753426318300,4.312,3641.2,3640.9,0.1376]
[1753426318834,1.50711578,3641.1,3640.5,0.2304]
[1753426319037,1.4796,3641.1,3640.7,0.1376]
[1753426319211,0.55,3641.1,3640.7,0.1376]
[1753426319414,0.7984,3641.5,3640.7,0.1376]
[1753426319723,0.55,3641.3,3641.0,0.1376]
[1753426320035,2.74641029,3641.2,3640.9,0.1376]
[1753426320220,0.55,3641.3,3640.9,1.0484]
[1753426320926,0.55,3641.3,3640.9,3.79494717]
[1753426321221,0.55,3641.3,3640.9,1.0484]
[1753426321525,0.55,3641.3,3640.9,0.5946]
[1753426321724,0.1376,3641.5,3640.9,0.1376]
[1753426321933,4.311,3641.4,3641.2,0.1376]
[1753426322155,7.08475062,3641.4,3641.2,0.1376]
[1753426322315,4.311,3641.4,3641.2,0.1376]
[1753426322637,4.33851578,3641.4,3641.2,0.1376]
[1753426323148,7.08473238,3641.4,3641.2,0.1376]
[1753426323322,0.55,3641.3,3640.5,2.97726762]
[1753426323528,2.74634735,3641.2,3641.0,0.1376]
[1753426323735,1.4796,3641.3,3641.0,0.1376]
[1753426324037,3.29642278,3641.1,3641.0,0.1376]
[1753426324238,3.29642278,3641.1,3640.5,0.2304]
[1753426324239,3.29657141,3641.0,3640.7,0.1376]
[1753426324410,2.74658873,3640.9,3640.0,0.9108]
[1753426324616,2.74670478,3640.8,3640.6,0.1376]
[1753426325142,2.74670478,3640.8,3640.2,2.97750157]
[1753426325143,2.74687022,3640.6,3640.5,0.1376]
[1753426325498,2.77426289,3640.7,3640.5,0.1376]
[1753426325900,2.74679997,3640.6,3640.5,0.1376]
[1753426326252,0.52641578,3640.7,3640.5,0.1376]
[1753426326253,0.9296,3640.7,3640.5,0.1376]
[1753426326539,0.6876,3641.0,3640.5,0.1376]
[1753426326714,0.1396,3641.0,3640.6,1.1412]
[1753426326911,0.002,3641.0,3640.9,0.1376]
[1753426327130,0.002,3641.0,3640.9,0.5946]
[1753426327646,0.002,3641.0,3640.9,0.1376]
[1753426328348,4.22809821,3641.0,3640.9,0.1376]
[1753426328516,1.4816,3641.0,3640.6,0.1376]
[1753426328718,5.2396,3640.9,3640.6,0.1376]
[1753426329042,7.55547487,3640.9,3640.6,0.1376]
[1753426329246,2.74669615,3640.8,3640.6,0.1376]
[1753426329406,2.74669615,3640.8,3639.9,3.20105563]
[1753426329407,2.74711046,3640.2,3639.6,0.2314]
[1753426329733,2.74704516,3640.3,3640.1,0.1376]
[1753426330100,3.24594516,3640.3,3640.1,0.1376]
[1753426330553,2.74704516,3640.3,3640.1,0.1376]
[1753426330737,7.05697528,3640.4,3640.1,0.1376]
[1753426331103,2.74704548,3640.3,3640.1,0.1376]
[1753426331666,2.74703448,3640.3,3640.1,0.1376]
[1753426331865,7.0569533,3640.4,3640.1,0.1376]
[1753426332426,4.309,3640.5,3640.2,0.2304]
[1753426332698,4.309,3640.5,3640.4,0.1376]
[1753426332829,4.859,3640.7,3640.4,0.1376]
[1753426333031,4.309,3640.7,3640.4,0.1376]
[1753426333347,7.05574824,3640.7,3640.4,0.1376]
[1753426333553,7.05572734,3640.7,3640.4,0.1376]
[1753426333922,1.0489,3640.6,3640.4,0.1376]
[1753426334123,2.74688814,3640.5,3640.3,0.1376]
[1753426334361,2.77446666,3640.4,3640.0,0.2304]
[1753426334565,2.74704556,3640.3,3640.2,0.1376]
[1753426334772,0.55,3640.4,3639.8,0.64078788]
[1753426334930,4.309,3640.5,3640.1,0.1376]
[1753426335125,4.309,3640.5,3640.3,0.1376]
[1753426335321,0.1376,3640.8,3640.3,0.1376]
[1753426335322,7.6057356,3640.7,3640.3,0.1376]
[1753426335648,2.74681362,3640.6,3640.3,0.1376]
[1753426336154,8.10464507,3640.7,3640.3,0.1376]
[1753426336360,5.3579,3640.7,3640.3,0.1376]
[1753426336671,8.10465097,3640.7,3640.3,0.1376]
[1753426337231,5.3579,3640.7,3640.3,0.1376]
[1753426337538,4.309,3640.6,3640.3,0.1376]
[1753426337738,2.7469414,3640.5,3640.3,0.1376]
[1753426338120,7.05582677,3640.6,3640.3,0.1376]
[1753426338326,4.309,3640.6,3640.3,0.1376]
[1753426339383,0.02751578,3640.5,3640.3,0.1376]
[1753426339931,4.309,3640.6,3640.3,0.1376]
[1753426340157,2.74692606,3640.5,3640.3,0.1376]
[1753426340333,2.74692606,3640.5,3639.9,0.2304]
[1753426340334,2.74695088,3640.4,3639.9,0.2304]
[1753426340533,2.74695088,3640.4,3640.2,0.1376]
[1753426340734,0.4939,3640.3,3640.2,0.1376]
[1753426341281,0.931,3640.3,3640.2,0.1376]
[1753426341886,3.67802634,3640.3,3640.2,0.1376]
[1753426342041,3.67802634,3640.3,3640.1,0.1376]
[1753426342241,7.98602634,3640.3,3640.1,0.1376]
[1753426342441,5.239,3640.3,3640.1,0.1376]
[1753426343334,0.55,3640.5,3640.1,0.1376]
[1753426343533,0.02751578,3640.4,3640.1,0.1376]
[1753426343880,2.7471018,3640.2,3640.1,0.1376]
[1753426344083,0.931,3640.3,3640.1,0.1376]
[1753426344383,0.4939,3640.2,3640.0,0.1376]
[1753426344735,0.6876,3640.5,3640.0,0.1376]
[1753426344936,4.308,3640.4,3640.0,0.5716]
[1753426345160,4.308,3640.4,3640.2,0.1376]
[1753426345401,0.55,3640.5,3640.2,0.1376]
[1753426345582,0.55,3640.7,3640.2,0.1376]
[1753426345766,4.33451578,3640.6,3640.3,0.2304]
[1753426345966,4.33451578,3640.6,3640.4,0.1376]
[1753426346991,7.08133532,3640.6,3640.4,0.1376]
[1753426347157,0.4939,3640.5,3640.4,0.1376]
[1753426348244,7.51842857,3640.6,3640.4,0.1376]
[1753426348441,1.481,3640.5,3640.4,0.1376]
[1753426348642,0.55,3640.5,3640.1,0.1376]
[1753426348846,4.857,3640.5,3640.1,0.5716]
[1753426349376,4.307,3640.5,3640.2,0.8908]
[1753426349673,0.7745,3640.9,3640.4,0.1376]
[1753426349982,0.002,3641.0,3640.8,2.74663761]
[1753426350190,0.002,3641.0,3640.9,0.1376]
[1753426350885,0.4959,3641.0,3640.8,0.1376]
[1753426351285,0.002,3641.0,3640.9,0.4568]
[1753426351590,0.002,3641.0,3640.9,3.89523937]
[1753426351755,0.002,3641.0,3640.9,4.57318958]
[1753426352156,0.002,3641.0,3640.9,4.54572385]
[1753426356471,0.002,3641.0,3640.9,4.57318958]
[1753426356671,0.04,3641.9,3641.4,2.97659651]
[1753426357067,0.04,3641.9,3641.4,4.00499651]
[1753426357281,0.04,3641.9,3641.4,6.0652162]
[1753426357720,0.04,3641.9,3641.4,2.42821969]
[1753426358017,2.74594967,3641.8,3641.4,0.1376]
[1753426358374,3.6791211,3641.5,3640.9,4.304]
[1753426358570,0.002,3641.5,3641.3,0.2304]
[1753426358911,0.002,3641.5,3641.4,0.1376]
[1753426362433,4.5430211,3641.5,3641.4,0.1376]
[1753426362723,2.74621546,3641.4,3641.2,0.1376]
[1753426363085,0.4939,3641.3,3641.2,0.1376]
[1753426363426,0.931,3641.3,3641.2,0.1376]
[1753426363628,2.74634735,3641.2,3640.5,0.2304]
[1753426363795,0.55,3640.9,3640.2,0.2304]
[1753426364132,2.74667854,3640.8,3640.6,0.1376]
[1753426364499,0.931,3640.7,3640.6,0.1376]
[1753426365280,4.04364745,3641.0,3640.6,0.1376]
[1753426365487,0.931,3640.9,3640.6,0.1376]
[1753426365997,0.55,3641.0,3640.6,0.1376]
[1753426366197,3.2964387,3641.1,3640.6,0.1376]
[1753426366384,0.4939,3641.0,3640.6,0.1376]
[1753426366730,0.4939,3640.9,3640.6,0.1376]
[1753426367084,3.18360388,3641.0,3640.6,0.1376]
[1753426367284,0.4858,3640.8,3640.6,0.1376]
[1753426367795,3.29643467,3641.1,3640.1,4.7588]
[1753426367796,0.9593,3640.7,3640.1,4.303]
[1753426368001,0.9593,3640.7,3640.5,0.1376]
[1753426368202,0.9593,3640.6,3640.5,0.1376]
[1753426369030,0.4858,3640.6,3640.5,0.1376]
[1753426369203,0.55,3640.8,3640.5,0.1376]
[1753426369730,0.4858,3640.7,3640.5,0.1376]
[1753426370285,0.4858,3640.7,3640.5,0.1386]
[1753426371326,0.55,3640.9,3640.5,0.1386]
[1753426371529,3.29657439,3640.9,3640.5,0.1386]
[1753426371695,3.70599925,3640.8,3640.5,0.1386]
[1753426372103,0.9593,3640.7,3640.5,0.1386]
[1753426372529,0.4858,3640.6,3640.5,0.1386]
[1753426372704,0.4858,3640.6,3640.5,0.001]
[1753426372705,1.77831578,3640.6,3640.5,0.001]
[1753426374933,1.7508,3640.6,3640.5,0.001]
[1753426376945,5.07511575,3640.6,3640.5,0.001]
[1753426377246,5.18519997,3640.6,3640.5,0.001]
[1753426377450,5.21271575,3640.6,3640.5,0.001]
[1753426377909,8.21271575,3640.6,3640.5,0.001]
[1753426378115,8.18519997,3640.6,3640.5,0.001]
[1753426381271,7.39369997,3640.6,3640.5,0.001]
[1753426381471,8.16529997,3640.6,3640.5,1e-08]
[1753426381764,8.30005349,3640.6,3640.5,1e-08]
[1753426382351,12.60005349,3640.6,3640.5,1e-08]
[1753426382870,8.30005349,3640.6,3640.5,1e-08]
[1753426383071,11.91529997,3640.6,3640.5,1e-08]
[1753426383379,12.46529997,3640.6,3640.5,1e-08]
[1753426387744,7.14179997,3640.6,3640.5,1e-08]
[1753426387982,11.44079997,3640.6,3640.5,1e-08]
[1753426388405,11.91429997,3640.6,3640.5,1e-08]
[1753426388568,9.46429997,3640.6,3640.5,1e-08]
[1753426388769,7.66919997,3640.6,3640.5,1e-08]
[1753426389005,8.21919997,3640.6,3640.5,1e-08]
[1753426389317,6.29691866,3640.5,3639.9,0.1376]
[1753426389468,0.55,3640.3,3639.9,0.1376]
[1753426389667,4.299,3640.2,3639.9,0.1376]
[1753426390865,0.02751578,3640.1,3639.9,0.1376]
[1753426391067,4.299,3640.0,3639.9,0.1376]
[1753426391911,4.299,3640.0,3639.9,2.88492822]
[1753426392062,4.299,3640.0,3639.9,4.34606791]
[1753426392506,4.299,3640.0,3639.9,1.59873969]
[1753426392705,4.299,3640.0,3639.9,1.0353]
[1753426392913,4.298,3640.1,3639.9,1.0353]
[1753426393092,0.55,3640.3,3639.9,3.78261639]
[1753426393412,0.55,3640.3,3640.1,0.2304]
[1753426393599,4.298,3640.2,3640.1,0.2304]
[1753426393798,4.298,3640.2,3639.9,0.368]
[1753426393984,7.04511853,3640.2,3639.9,0.368]
[1753426394183,4.298,3640.1,3639.9,0.368]
[1753426395107,4.298,3640.1,3639.9,0.0497]
[1753426395313,4.298,3640.1,3639.9,0.1873]
[1753426395699,4.298,3640.1,3639.9,0.1376]
[1753426395900,0.55,3639.9,3639.7,0.001]
[1753426396070,4.848,3639.8,3639.7,0.001]
[1753426396271,5.8073,3639.8,3639.7,0.001]
[1753426396896,8.5547037,3639.8,3639.7,0.001]
[1753426398809,8.6923037,3639.8,3639.7,0.001]
[1753426399107,0.55,3639.7,3639.1,0.1376]
[1753426399312,2.74763016,3639.5,3639.1,0.1376]
[1753426399511,0.55,3639.1,3638.4,2.79814075]
[1753426399680,2.74809036,3638.9,3638.7,0.1376]
[1753426400504,2.7480229,3639.0,3638.7,0.1376]
[1753426400700,0.55,3639.1,3638.7,0.1376]
[1753426400998,3.29793424,3639.1,3638.7,0.1376]
[1753426401716,0.55,3639.1,3638.7,0.1376]
[1753426401915,8.38527446,3639.2,3638.7,0.1376]
[1753426401916,0.1376,3639.2,3638.8,0.4387]
[1753426402078,4.297,3639.1,3638.8,3.23540417]
[1753426402285,4.297,3639.1,3638.9,0.4387]
[1753426402483,4.297,3639.1,3638.8,0.926]
[1753426402693,0.02751578,3639.0,3638.7,0.1376]
[1753426402885,0.46171578,3639.0,3638.7,0.1376]
[1753426403217,0.9025,3639.0,3638.7,0.1376]
[1753426403419,0.4342,3639.0,3638.7,0.1376]
[1753426403580,2.74802754,3639.0,3638.7,0.1376]
[1753426403780,2.74810727,3638.9,3638.7,0.1376]
[1753426404221,0.46171578,3638.8,3638.1,0.0907]
[1753426404520,2.77577594,3638.7,3638.4,0.1376]
[1753426404676,2.74835711,3638.6,3638.1,0.0907]
[1753426405013,0.55,3638.6,3638.2,0.1376]
[1753426405174,4.297,3638.7,3638.2,3.32490003]
[1753426405379,4.297,3638.7,3638.2,0.5763]
[1753426406696,4.297,3638.7,3638.2,0.1376]
[1753426407024,2.74861195,3638.2,3638.1,0.041]
[1753426407182,7.59461195,3638.2,3638.1,0.041]
[1753426407386,8.63471195,3638.2,3638.1,0.041]
[1753426407920,7.73221195,3638.2,3638.1,0.041]
[1753426408224,8.16641195,3638.2,3638.1,0.041]
[1753426408519,8.63471195,3638.2,3638.1,0.041]
[1753426409431,5.8861,3638.2,3638.1,0.041]
[1753426409724,8.63471195,3638.2,3638.1,0.041]
[1753426410082,8.20051195,3638.2,3638.1,0.041]
[1753426410328,8.63471195,3638.2,3638.1,0.041]
[1753426410664,12.43991195,3638.2,3638.1,0.041]
[1753426412300,12.43991195,3638.2,3638.1,1e-08]
[1753426412705,13.93629271,3638.2,3638.1,1e-08]
[1753426413888,13.93629271,3638.2,3637.4,0.001]
[1753426413889,7.10434089,3637.5,3637.4,0.001]
[1753426414212,13.00720049,3637.5,3637.4,0.001]
[1753426414638,13.90970049,3637.5,3637.4,0.001]
[1753426417560,4.08296764,3637.2,3637.1,0.04]
[1753426417711,11.40648342,3637.2,3637.1,0.04]
[1753426417915,13.78269285,3637.2,3637.1,0.04]
[1753426421125,3.29967003,3636.8,3636.1,0.04]
[1753426421328,10.76078581,3636.8,3636.1,0.04]
[1753426421514,12.40067003,3636.8,3636.1,0.04]
[1753426421852,13.68741805,3636.8,3636.1,0.04]
[1753426424017,9.39141805,3636.8,3636.1,0.04]
[1753426424216,13.68741805,3636.8,3636.1,0.04]
[1753426425318,8.48891805,3636.8,3636.2,6.17537091]
[1753426425542,7.17401805,3636.8,3636.2,6.17537091]
[1753426425743,5.58274802,3636.8,3636.7,6.61507091]
[1753426426132,1.28674802,3636.8,3636.7,10.79358599]
[1753426426330,5.58174802,3636.8,3636.7,10.93118599]
[1753426426939,1.28674802,3636.8,3636.7,10.93118599]
[1753426427255,1.28674802,3636.8,3636.7,10.98088599]
[1753426429122,1.28674802,3636.8,3636.7,4.80551508]
[1753426431544,1.28674802,3636.8,3636.7,4.83301253]
[1753426432845,1.28674802,3636.8,3636.7,4.80551508]
[1753426433545,4.296,3637.8,3637.4,2.7491803]
[1753426433748,3.55,3638.2,3637.5,2.79877244]
[1753426433979,0.55,3638.2,3637.7,2.88653753]
[1753426434181,0.55,3638.2,3637.8,2.74885989]
[1753426434381,4.294,3638.3,3638.0,2.74875945]
[1753426434581,4.294,3638.3,3638.1,0.1376]
[1753426435880,4.294,3638.3,3638.2,2.74861195]
[1753426436446,0.1376,3638.6,3638.2,2.79831195]
[1753426436673,4.293,3638.5,3638.3,2.7485364]
[1753426437353,0.55,3638.8,3638.7,2.74822167]
[1753426437566,0.7276,3638.9,3638.4,0.5864]
[1753426437567,4.4706,3638.9,3638.4,0.5864]
[1753426437799,4.4706,3638.9,3638.6,2.74825768]
[1753426437979,4.333,3638.9,3638.7,2.74817569]
[1753426438183,0.04,3638.9,3638.8,2.74815873]
[1753426438384,0.04,3638.9,3638.8,4.1374746]
[1753426440370,0.04,3638.9,3638.8,0.1376]
[1753426440596,0.55,3638.8,3638.1,2.74867961]
[1753426440807,0.55,3638.8,3638.4,0.0497]
[1753426441080,0.04,3638.9,3638.8,2.74815873]
[1753426441657,0.04,3639.9,3639.8,2.7474037]
[1753426441856,0.04,3639.9,3639.7,0.0497]
[1753426442103,0.04,3639.9,3639.8,3.1962037]
[1753426442285,0.04,3639.9,3639.4,4.291]
[1753426442590,0.04,3639.9,3639.2,4.8191]
[1753426442798,0.04,3639.9,3639.8,2.7474037]
[1753426443869,0.04,3639.9,3639.2,0.85129397]
[1753426444071,0.04,3639.9,3639.4,2.74763514]
[1753426444270,0.04,3639.9,3639.5,2.74761902]
[1753426444897,0.04,3639.9,3639.6,2.74754346]
[1753426445094,0.04,3639.9,3639.6,2.7475266]
[1753426445616,0.04,3639.9,3639.5,2.74761379]
[1753426445826,0.04,3639.9,3639.3,2.74778116]
[1753426446329,0.04,3639.9,3639.5,2.74755698]
[1753426446616,0.04,3639.9,3639.5,2.74761401]
[1753426446977,0.04,3639.9,3639.3,2.74772648]
[1753426447178,0.04,3639.9,3639.5,2.74757075]
[1753426447379,0.04,3639.9,3639.4,2.74768465]
[1753426447615,0.04,3639.9,3639.5,2.74761868]
[1753426447924,0.04,3639.9,3639.2,0.4985]
[1753426448084,0.04,3639.9,3639.2,3.24632428]
[1753426448424,0.04,3639.9,3639.3,2.74772171]
[1753426448586,0.04,3639.9,3639.4,2.74769935]
[1753426449011,0.04,3639.9,3639.3,2.74777419]
[1753426449329,0.04,3639.9,3639.4,2.74769756]
[1753426449842,0.04,3639.9,3638.7,2.74816467]
[1753426449843,0.55,3639.7,3638.9,4.3387]
[1753426450000,0.02751578,3639.6,3639.1,2.74788129]
[1753426450197,0.02751578,3639.6,3639.0,2.74795602]
[1753426450589,0.02751578,3639.6,3639.1,2.7479217]
[1753426450785,0.55,3639.5,3638.9,4.289]
[1753426450998,0.02751578,3639.4,3639.1,0.1376]
[1753426451201,0.46431578,3639.4,3639.1,0.1376]
[1753426451681,0.4368,3639.3,3638.8,6.16358455]
[1753426451888,0.4368,3639.3,3639.0,0.1376]
[1753426452092,0.4368,3639.3,3638.8,6.16358455]
[1753426452435,0.9244,3639.3,3638.9,0.1376]
[1753426452608,0.9244,3639.3,3638.9,2.88567948]
[1753426452931,0.55,3639.5,3638.9,2.88567948]
[1753426453091,3.29764748,3639.5,3638.9,0.1376]
[1753426453793,2.74771402,3639.4,3638.9,0.1376]
[1753426454236,0.4368,3639.3,3638.9,0.1376]
[1753426454602,0.4368,3639.3,3638.9,2.88566737]
[1753426455143,0.4876,3639.4,3638.9,0.1376]
[1753426455500,3.67212117,3639.4,3638.9,0.1376]
[1753426457844,0.4724,3639.3,3638.9,0.1376]
[1753426458604,0.4724,3639.3,3638.9,2.88568216]
[1753426459434,0.4896,3639.4,3639.0,2.74798965]
[1753426459641,0.002,3639.4,3639.0,2.74798965]
[1753426462353,0.002,3639.4,3639.1,2.7479292]
[1753426462658,0.002,3639.4,3639.0,2.74798086]
[1753426463146,0.002,3639.4,3639.1,2.74791669]
[1753426463652,0.002,3639.4,3639.0,2.74797973]
[1753426463953,0.002,3639.4,3639.1,2.74792513]
[1753426465548,0.002,3639.4,3638.9,2.88567513]
[1753426465549,0.002,3639.4,3639.0,2.74799163]
[1753426466050,0.002,3639.4,3638.6,0.0497]
[1753426466051,3.29815897,3638.8,3637.8,0.0497]
[1753426466362,0.55,3638.4,3637.2,10.07403688]
[1753426466528,10.61197664,3638.4,3637.4,2.74916617]
[1753426466723,11.52176086,3638.4,3637.4,2.74916617]
[1753426467075,12.35006086,3638.4,3637.1,0.04]
[1753426467378,12.35006086,3638.4,3637.1,2.78941812]
[1753426467891,12.35006086,3638.4,3637.1,0.04]
[1753426468070,1.3783,3638.4,3637.6,0.503]
[1753426468244,4.286,3638.5,3638.1,2.74866107]
[1753426468438,4.286,3638.5,3637.9,2.74878503]
[1753426468665,4.286,3638.5,3638.0,2.74874809]
[1753426468866,4.286,3638.5,3638.1,2.74868527]
[1753426469177,0.55,3638.7,3638.4,2.74846086]
[1753426469377,2.74796363,3639.1,3638.7,2.74816818]
[1753426469378,4.286,3639.1,3638.7,2.74816818]
[1753426469540,3.0,3639.0,3638.8,2.7481553]
[1753426469735,0.8174,3639.5,3639.0,2.7479581]
[1753426469944,4.286,3639.3,3638.8,2.74810785]